bitfinex/quotes_BTCUSD_20230405
["timestamp","ask_amount","ask_price","bid_price","bid_amount"]
[1680725328383,0.00018,28217.0,28214.0,0.1513193]
[1680725328593,0.001,28216.0,28214.0,0.1523193]
[1680725328800,0.36227653,28217.0,28214.0,0.1513193]
[1680725329010,0.36227653,28217.0,28214.0,0.1523193]
[1680725329011,0.001,28216.0,28214.0,0.1523193]
[1680725329224,0.36227653,28217.0,28214.0,0.1513193]
[1680725329437,0.36227653,28217.0,28214.0,0.1514993]
[1680725329438,0.36327653,28217.0,28214.0,0.1514993]
[1680725329683,0.36227653,28217.0,28214.0,0.1514993]
[1680725329883,0.36227653,28217.0,28214.0,0.1554993]
[1680725330307,0.36227653,28217.0,28214.0,0.23603753]
[1680725330716,0.36227653,28217.0,28214.0,0.1514993]
[1680725331274,0.36227653,28217.0,28214.0,0.1624993]
[1680725331633,0.36245653,28217.0,28214.0,0.1553193]
[1680725332040,0.36245653,28217.0,28214.0,0.1513193]
[1680725332284,0.36345653,28217.0,28214.0,0.1523193]
[1680725332466,0.36327653,28217.0,28214.0,0.1524993]
[1680725333446,0.001,28217.0,28215.0,0.26635177]
[1680725333659,0.001,28217.0,28216.0,0.001772]
[1680725334099,0.39318562,28218.0,28215.0,0.35107]
[1680725334523,0.001,28217.0,28215.0,0.35107]
[1680725334729,0.39318562,28218.0,28215.0,0.26653177]
[1680725334963,0.001,28217.0,28215.0,0.26653177]
[1680725335168,0.39318562,28218.0,28215.0,0.26653177]
[1680725335518,0.39418562,28218.0,28215.0,0.26653177]
[1680725335720,0.39318562,28218.0,28215.0,0.26653177]
[1680725335933,0.001,28217.0,28215.0,0.26653177]
[1680725336531,0.37647265,28217.0,28215.0,0.26653177]
[1680725336736,0.34740056,28216.0,28215.0,0.00018]
[1680725338135,0.017719,28217.0,28215.0,0.00018]
[1680725338341,0.001,28216.0,28215.0,0.00018]
[1680725338543,0.01772,28216.0,28215.0,0.00018]
[1680725338780,0.01872,28216.0,28215.0,0.00018]
[1680725339366,0.01872,28216.0,28215.0,0.0183]
[1680725339367,0.48003673,28216.0,28215.0,0.0183]
[1680725339588,0.48003673,28216.0,28210.0,0.21185317]
[1680725339589,0.054237,28215.0,28213.0,0.00018]
[1680725339858,0.054237,28215.0,28205.0,0.08453823]
[1680725339859,0.301291,28212.0,28205.0,0.08453823]
[1680725340073,0.88014147,28211.0,28204.0,0.08471823]
[1680725340281,0.124072,28209.0,28203.0,0.21182995]
[1680725340490,0.104487,28207.0,28203.0,0.08471823]
[1680725340703,0.10466,28205.0,28203.0,0.08453823]
[1680725340914,0.42884456,28204.0,28203.0,0.08453823]
[1680725341963,0.42884456,28204.0,28203.0,0.08653823]
[1680725342380,0.42884456,28204.0,28203.0,0.08671823]
[1680725342799,0.37243756,28204.0,28203.0,0.08471823]
[1680725342997,0.42444856,28204.0,28203.0,0.08471823]
[1680725343539,0.42744856,28204.0,28203.0,0.08671823]
[1680725343751,0.42756856,28204.0,28203.0,0.002]
[1680725343963,0.00018,28205.0,28203.0,0.08453823]
[1680725344173,0.003,28204.0,28203.0,0.32951905]
[1680725344376,0.35471056,28205.0,28203.0,0.32769905]
[1680725344583,0.00018,28206.0,28203.0,0.32769905]
[1680725344797,0.017726,28207.0,28203.0,0.32751905]
[1680725345049,0.003,28204.0,28203.0,0.32951905]
[1680725346059,0.017726,28207.0,28203.0,0.32751905]
[1680725346263,0.003,28206.0,28203.0,0.32851905]
[1680725346469,0.017726,28207.0,28203.0,0.32751905]
[1680725347090,0.003,28204.0,28203.0,0.32851905]
[1680725347304,0.017726,28207.0,28203.0,0.32751905]
[1680725347508,0.020726,28207.0,28203.0,0.32851905]
[1680725347918,0.017726,28207.0,28203.0,0.32751905]
[1680725348131,0.00018,28208.0,28204.0,0.14067138]
[1680725348353,0.017725,28208.0,28204.0,0.08453823]
[1680725348561,0.017725,28208.0,28204.0,0.33637756]
[1680725348711,0.017905,28209.0,28204.0,0.08453823]
[1680725348919,0.37243556,28209.0,28204.0,0.33727772]
[1680725349127,0.35471056,28209.0,28204.0,0.21182995]
[1680725349302,0.35471056,28209.0,28205.0,0.08453823]
[1680725349658,0.35471056,28209.0,28205.0,0.00018]
[1680725349865,0.003,28207.0,28205.0,0.00018]
[1680725350089,0.67959016,28209.0,28205.0,0.00018]
[1680725350309,0.3227536,28206.0,28205.0,0.00018]
[1680725350505,0.78361716,28206.0,28205.0,0.00018]
[1680725350709,0.78361716,28206.0,28203.0,0.00018]
[1680725350914,0.40645256,28205.0,28203.0,0.00018]
[1680725351110,0.054464,28204.0,28203.0,0.00018]
[1680725351284,0.40917456,28204.0,28203.0,0.00018]
[1680725351524,0.40826056,28204.0,28203.0,0.00018]
[1680725351704,0.40835056,28204.0,28203.0,0.00018]
[1680725352135,0.35471056,28204.0,28203.0,0.00018]
[1680725352893,0.35771056,28204.0,28203.0,0.00118]
[1680725353082,0.35771056,28204.0,28203.0,0.14558582]
[1680725353730,0.003,28204.0,28203.0,0.14558582]
[1680725353935,0.003,28204.0,28203.0,0.14540582]
[1680725354150,0.003,28204.0,28203.0,0.24540582]
[1680725354351,0.003,28204.0,28203.0,0.24052582]
[1680725354556,0.003,28204.0,28203.0,0.07254469]
[1680725364119,0.77009784,28204.0,28203.0,0.07254469]
[1680725364324,0.75237084,28204.0,28203.0,0.07254469]
[1680725364573,0.69965184,28204.0,28203.0,0.07254469]
[1680725364776,0.35771056,28204.0,28203.0,0.07254469]
[1680725364982,0.35789056,28204.0,28203.0,0.07254469]
[1680725365185,0.35489056,28204.0,28203.0,0.07254469]
[1680725365364,0.36289056,28204.0,28203.0,0.07354469]
[1680725365617,0.35489056,28204.0,28203.0,0.07254469]
[1680725366038,0.35489056,28204.0,28203.0,0.07354469]
[1680725366039,0.36289056,28204.0,28203.0,0.07354469]
[1680725366220,0.40488656,28204.0,28203.0,0.07254469]
[1680725366396,0.41288656,28204.0,28203.0,0.07354469]
[1680725366602,0.41288656,28204.0,28203.0,0.07254469]
[1680725366603,0.40488656,28204.0,28203.0,0.07254469]
[1680725366827,0.41288656,28204.0,28203.0,0.07354469]
[1680725367234,0.36289056,28204.0,28203.0,0.07354469]
[1680725367888,0.35489056,28204.0,28203.0,0.07254469]
[1680725368103,0.00018,28204.0,28203.0,0.18821554]
[1680725368319,0.00018,28208.0,28203.0,0.18821554]
[1680725368534,0.73951245,28207.0,28203.0,0.18821554]
[1680725368743,0.008,28204.0,28203.0,0.18921554]
[1680725369567,0.73969245,28207.0,28203.0,0.18821554]
[1680725369778,0.73969245,28207.0,28203.0,0.18921554]
[1680725370683,0.73969245,28207.0,28203.0,0.18821554]
[1680725371320,0.008,28204.0,28203.0,0.07354469]
[1680725371542,0.00018,28207.0,28203.0,0.22381686]
[1680725371774,0.008,28207.0,28204.0,0.1351341]
[1680725371996,0.00018,28207.0,28204.0,0.1369061]
[1680725372217,0.00018,28210.0,28204.0,0.1369061]
[1680725372427,0.35471056,28209.0,28204.0,0.1369061]
[1680725372639,0.35489056,28209.0,28204.0,0.1369061]
[1680725373346,0.001,28207.0,28204.0,0.1489061]
[1680725373578,0.35489056,28209.0,28204.0,0.1369061]
[1680725373760,0.35589056,28209.0,28204.0,0.1549061]
[1680725373964,0.76145668,28209.0,28204.0,0.1531341]
[1680725374176,0.37621264,28208.0,28204.0,0.1351341]
[1680725374382,0.001,28207.0,28204.0,0.1471341]
[1680725374587,0.37639264,28208.0,28204.0,0.1351341]
[1680725374795,0.37639264,28208.0,28204.0,0.1531341]
[1680725375151,0.37639264,28208.0,28204.0,0.1351341]
[1680725375380,0.001,28207.0,28204.0,0.1471341]
[1680725376166,0.35489056,28209.0,28204.0,0.1369061]
[1680725376358,0.001,28208.0,28204.0,0.1549061]
[1680725376564,0.35489056,28209.0,28204.0,0.22144433]
[1680725376766,0.001,28207.0,28204.0,0.23344433]
[1680725376963,0.001,28207.0,28205.0,0.12358372]
[1680725377170,0.001,28207.0,28205.0,0.12535572]
[1680725377580,0.75463684,28209.0,28205.0,0.12535572]
[1680725377788,0.001,28208.0,28205.0,0.12535572]
[1680725378024,0.75463684,28209.0,28205.0,0.12535572]
[1680725378233,0.75463684,28209.0,28205.0,0.13035572]
[1680725378854,0.35489056,28209.0,28205.0,0.13035572]
[1680725379067,0.35489056,28209.0,28205.0,0.20989395]
[1680725379288,0.34110649,28208.0,28205.0,0.22012195]
[1680725379483,0.34028649,28208.0,28205.0,0.20812195]
[1680725379698,0.34028649,28208.0,28205.0,0.21312195]
[1680725379901,0.34028649,28208.0,28206.0,0.12968298]
[1680725380740,0.34128649,28208.0,28206.0,0.21422121]
[1680725382267,0.34128649,28208.0,28206.0,0.12968298]
[1680725382650,0.34128649,28208.0,28206.0,0.34133293]
[1680725384755,0.34128649,28208.0,28207.0,0.12711172]
[1680725385546,0.34028649,28208.0,28207.0,0.12711172]
[1680725386110,0.34828649,28208.0,28207.0,0.12811172]
[1680725386317,0.34028649,28208.0,28207.0,0.12711172]
[1680725386520,0.34828649,28208.0,28207.0,0.12811172]
[1680725390608,0.00818,28208.0,28207.0,0.12811172]
[1680725391213,0.00818,28208.0,28207.0,0.29759425]
[1680725391421,0.00818,28208.0,28207.0,0.12829172]
[1680725391422,0.008,28208.0,28207.0,0.12829172]
[1680725391625,0.008,28208.0,28207.0,0.12811172]
[1680725392190,0.00818,28208.0,28207.0,0.12811172]
[1680725393429,0.00018,28208.0,28207.0,0.12711172]
[1680725393635,0.01118,28208.0,28207.0,0.12811172]
[1680725394791,0.011,28208.0,28207.0,0.12811172]
[1680725394994,0.01118,28208.0,28207.0,0.12811172]
[1680725396185,0.78071638,28208.0,28207.0,0.12811172]
[1680725396410,0.83543938,28208.0,28207.0,0.12311172]
[1680725398126,0.82043149,28208.0,28207.0,0.08558143]
[1680725398363,0.82025149,28208.0,28207.0,0.001]
[1680725399197,0.82025149,28208.0,28205.0,0.16966253]
[1680725399198,0.05518,28207.0,28205.0,0.08476143]
[1680725399412,0.05518,28207.0,28203.0,0.45388039]
[1680725399413,0.47546622,28206.0,28204.0,0.00012]
[1680725399625,0.40702956,28205.0,28203.0,0.07254469]
[1680725399812,0.203757,28204.0,28203.0,0.07254469]
[1680725400043,0.55846756,28204.0,28203.0,0.07254469]
[1680725400252,0.55852756,28204.0,28203.0,0.07254469]
[1680725400465,0.55864756,28204.0,28203.0,0.07254469]
[1680725400738,1.0245262,28204.0,28203.0,0.07254469]
[1680725400946,0.63126998,28204.0,28203.0,0.07254469]
[1680725401373,0.65626998,28204.0,28203.0,0.07354469]
[1680725401578,1.04639023,28204.0,28203.0,0.07354469]
[1680725402235,1.02139023,28204.0,28203.0,0.07254469]
[1680725402367,1.04639023,28204.0,28203.0,0.07354469]
[1680725404663,1.01093523,28204.0,28203.0,0.07354469]
[1680725407151,0.83831281,28204.0,28203.0,0.07354469]
[1680725408426,0.82058581,28204.0,28203.0,0.07354469]
[1680725408843,0.83831281,28204.0,28203.0,0.07354469]
[1680725409254,0.82058581,28204.0,28203.0,0.07354469]
[1680725410378,0.83831281,28204.0,28203.0,0.07354469]
[1680725411314,0.87376781,28204.0,28203.0,0.07354469]
[1680725411867,0.87358781,28204.0,28200.0,0.0841119]
[1680725412101,0.87358781,28204.0,28200.0,0.10275369]
[1680725412102,0.051342,28202.0,28200.0,0.10275369]
[1680725412283,0.02518,28204.0,28201.0,0.13787385]
[1680725412522,0.37243856,28203.0,28201.0,0.13787385]
[1680725412729,0.35471056,28203.0,28201.0,0.13805385]
[1680725412939,0.00018,28205.0,28202.0,0.13436091]
[1680725413159,0.024,28204.0,28201.0,0.29632197]
[1680725413371,0.41937353,28209.0,28203.0,0.17125453]
[1680725413617,0.77408409,28209.0,28204.0,0.12666828]
[1680725413834,0.77408409,28209.0,28204.0,0.12684828]
[1680725414271,0.44425317,28208.0,28205.0,0.12666828]
[1680725414485,0.44425317,28208.0,28205.0,0.12684828]
[1680725415536,0.45725317,28208.0,28205.0,0.12784828]
[1680725415746,0.45725317,28208.0,28205.0,0.28890047]
[1680725415957,0.45725317,28208.0,28206.0,0.10188582]
[1680725416168,0.00018,28209.0,28206.0,0.10365782]
[1680725416350,0.37366316,28210.0,28206.0,0.10188582]
[1680725416553,0.37366316,28210.0,28206.0,0.10365782]
[1680725417204,0.001,28208.0,28206.0,0.10365782]
[1680725417414,0.3807649,28209.0,28206.0,0.10365782]
[1680725417618,0.3807649,28209.0,28206.0,0.10465782]
[1680725417844,0.3807649,28209.0,28206.0,0.10365782]
[1680725418252,0.001,28208.0,28206.0,0.11065782]
[1680725418469,0.3807649,28209.0,28206.0,0.10365782]
[1680725418613,0.3817649,28209.0,28206.0,0.11665782]
[1680725418838,0.3807649,28209.0,28206.0,0.10365782]
[1680725419035,0.001,28208.0,28206.0,0.11065782]
[1680725420117,0.3807649,28209.0,28206.0,0.10365782]
[1680725420358,0.3817649,28209.0,28206.0,0.11665782]
[1680725420647,0.3807649,28209.0,28206.0,0.10365782]
[1680725420812,0.001,28208.0,28206.0,0.11065782]
[1680725421067,0.3807649,28209.0,28206.0,0.10383782]
[1680725421308,0.3817649,28209.0,28206.0,0.11083782]
[1680725421493,0.3807649,28209.0,28206.0,0.10383782]
[1680725421728,0.001,28208.0,28206.0,0.11083782]
[1680725421934,0.3807649,28209.0,28206.0,0.18835848]
[1680725422999,0.3817649,28209.0,28206.0,0.19535848]
[1680725423474,0.37010407,28208.0,28206.0,0.19535848]
[1680725424347,0.37010407,28208.0,28206.0,0.18835848]
[1680725424553,0.37110407,28208.0,28206.0,0.19535848]
[1680725425050,0.79310028,28208.0,28206.0,0.00718]
[1680725425253,0.053556,28207.0,28206.0,0.007]
[1680725425461,0.35471056,28207.0,28206.0,0.007]
[1680725425667,0.40889656,28207.0,28205.0,0.00018]
[1680725425925,0.35471056,28207.0,28205.0,0.00018]
[1680725426155,0.41281184,28206.0,28205.0,0.00018]
[1680725426399,0.41281184,28206.0,28205.0,0.08470066]
[1680725426862,0.41281184,28206.0,28205.0,0.08570066]
[1680725427072,0.41281184,28206.0,28205.0,0.08470066]
[1680725427220,0.41981184,28206.0,28205.0,0.08570066]
[1680725429366,0.41981184,28206.0,28205.0,0.08747266]
[1680725429574,0.007,28206.0,28205.0,0.08747266]
[1680725429777,0.007,28206.0,28205.0,0.25507748]
[1680725430609,0.35471056,28207.0,28205.0,0.25407748]
[1680725431322,0.35471056,28207.0,28206.0,0.08396423]
[1680725431565,0.35471056,28207.0,28206.0,0.08591623]
[1680725433700,0.36171056,28207.0,28206.0,0.08691623]
[1680725433948,0.35471056,28207.0,28206.0,0.08591623]
[1680725434149,0.36171056,28207.0,28206.0,0.08691623]
[1680725434569,0.36171056,28207.0,28206.0,0.002952]
[1680725434782,0.007,28207.0,28206.0,0.002772]
[1680725434987,0.007,28207.0,28206.0,0.002952]
[1680725437227,0.007,28207.0,28206.0,0.13593786]
[1680725438609,0.007,28207.0,28206.0,0.22045852]
[1680725439091,0.007,28207.0,28206.0,0.13593786]
[1680725439286,0.007,28207.0,28206.0,0.08747266]
[1680725439421,0.007,28207.0,28206.0,0.002952]
[1680725440287,0.007,28207.0,28206.0,0.08747266]
[1680725440738,0.4328482,28207.0,28206.0,0.08570066]
[1680725440954,0.78755876,28207.0,28206.0,0.00118]
[1680725441164,0.78755876,28207.0,28206.0,0.001]
[1680725441165,0.84346276,28207.0,28206.0,0.001]
[1680725441370,0.92400904,28207.0,28206.0,0.001]
[1680725441572,0.84346276,28207.0,28206.0,0.001]
[1680725441923,0.83646276,28207.0,28205.0,0.00018]
[1680725442130,0.40930356,28206.0,28205.0,0.00018]
[1680725442329,0.42702956,28206.0,28204.0,0.00018]
[1680725442531,0.051401,28205.0,28204.0,0.00018]
[1680725442731,0.55929256,28205.0,28203.0,0.00018]
[1680725442932,0.40883656,28204.0,28203.0,0.00018]
[1680725443116,0.42656356,28204.0,28203.0,0.00018]
[1680725443772,0.40883656,28204.0,28203.0,0.00018]
[1680725443996,0.42656356,28204.0,28203.0,0.00018]
[1680725444185,0.42656356,28204.0,28202.0,0.00018]
[1680725444507,0.068871,28203.0,28202.0,0.00018]
[1680725444645,0.40585356,28203.0,28202.0,0.00018]
[1680725444851,0.35471056,28203.0,28202.0,0.08470066]
[1680725445642,0.37371056,28203.0,28202.0,0.08470066]
[1680725445860,0.019,28203.0,28202.0,0.12862028]
[1680725446647,0.019,28203.0,28202.0,0.26497474]
[1680725447762,0.019,28203.0,28202.0,0.08230665]
[1680725447968,0.00018,28205.0,28202.0,0.08407865]
[1680725448170,0.019,28203.0,28202.0,0.08407865]
[1680725448779,0.38564123,28205.0,28202.0,0.08407865]
[1680725448986,0.00018,28205.0,28203.0,0.0843787]
[1680725449203,0.01418,28205.0,28204.0,0.001772]
[1680725449424,0.34225552,28207.0,28204.0,0.001772]
[1680725449640,0.69696608,28207.0,28204.0,0.001772]
[1680725449847,0.69696608,28207.0,28203.0,0.21602119]
[1680725450902,0.00018,28208.0,28205.0,0.00870913]
[1680725451114,0.35471056,28208.0,28205.0,0.00870913]
[1680725451324,0.35489056,28208.0,28205.0,0.00870913]
[1680725451563,0.35489056,28208.0,28205.0,0.09308783]
[1680725451564,0.70426247,28208.0,28205.0,0.09308783]
[1680725452165,0.70526247,28208.0,28205.0,0.10008783]
[1680725452396,0.44521032,28207.0,28205.0,0.09308783]
[1680725452595,0.44521032,28207.0,28205.0,0.10026783]
[1680725453660,0.44521032,28207.0,28205.0,0.09326783]
[1680725454117,0.44621032,28207.0,28205.0,0.10026783]
[1680725454326,0.44639032,28207.0,28205.0,0.09508783]
[1680725457171,0.001,28207.0,28206.0,0.33061393]
[1680725457379,0.001,28207.0,28206.0,0.24623523]
[1680725457586,0.00018,28208.0,28206.0,0.23923523]
[1680725457804,0.00118,28208.0,28207.0,0.08439227]
[1680725458024,0.00118,28208.0,28207.0,0.08616427]
[1680725458025,0.00018,28208.0,28207.0,0.08616427]
[1680725458231,0.00018,28208.0,28207.0,0.21275192]
[1680725458444,0.00018,28208.0,28207.0,0.21275677]
[1680725458659,0.00118,28208.0,28207.0,0.21275677]
[1680725458868,0.00018,28208.0,28207.0,0.12835965]
[1680725459330,0.32427211,28209.0,28207.0,0.13035965]
[1680725459540,0.32427211,28209.0,28208.0,0.08442684]
[1680725459744,0.32427211,28209.0,28208.0,0.08619884]
[1680725459949,0.32427211,28209.0,28208.0,0.09579884]
[1680725460929,0.32927211,28209.0,28208.0,0.09679884]
[1680725462838,0.32927211,28209.0,28208.0,0.012372]
[1680725463380,0.32927211,28209.0,28208.0,0.09679884]
[1680725463783,0.32927211,28209.0,28208.0,0.012372]
[1680725464409,0.32427211,28209.0,28208.0,0.012372]
[1680725464735,0.32409211,28209.0,28208.0,0.012372]
[1680725468199,0.31927211,28209.0,28208.0,0.0034]
[1680725468327,0.00018,28209.0,28208.0,0.005172]
[1680725468677,0.018,28209.0,28208.0,0.006172]
[1680725469369,0.4494494,28209.0,28208.0,0.006172]
[1680725469576,0.4315094,28209.0,28208.0,0.005172]
[1680725469763,0.4566294,28209.0,28208.0,0.006172]
[1680725469964,0.02518,28209.0,28208.0,0.006172]
[1680725470181,0.37971056,28209.0,28208.0,0.0044]
[1680725470403,0.75933451,28209.0,28208.0,0.0044]
[1680725470824,0.73433451,28209.0,28208.0,0.0034]
[1680725471244,0.76133451,28209.0,28208.0,0.0044]
[1680725471912,0.43571156,28209.0,28208.0,0.0044]
[1680725472547,0.43571156,28209.0,28208.0,0.001]
[1680725473426,0.43589156,28209.0,28208.0,0.001]
[1680725473637,0.81864882,28209.0,28208.0,0.001]
[1680725473861,0.43589156,28209.0,28208.0,0.001]
[1680725474961,0.79666606,28209.0,28208.0,0.001]
[1680725477305,0.87633267,28209.0,28208.0,0.001]
[1680725477729,0.79666606,28209.0,28208.0,0.001]
[1680725483060,0.74266506,28209.0,28208.0,0.001]
[1680725483440,0.79447406,28209.0,28208.0,0.001]
[1680725483849,0.79429406,28209.0,28208.0,0.00088957]
[1680725484627,0.74248506,28209.0,28208.0,0.00088957]
[1680725484827,0.79531506,28209.0,28208.0,0.00088957]
[1680725485424,0.07983,28209.0,28208.0,0.00088957]
[1680725485666,0.027,28209.0,28208.0,0.20676238]
[1680725491523,0.027,28209.0,28208.0,0.2489971]
[1680725491735,0.027,28209.0,28208.0,0.29171904]
[1680725493003,0.3430406,28211.0,28208.0,0.29100947]
[1680725493234,0.019,28209.0,28208.0,0.29200947]
[1680725493447,0.69775116,28211.0,28208.0,0.29100947]
[1680725493659,0.019,28209.0,28208.0,0.29200947]
[1680725495716,0.019,28209.0,28208.0,0.17593453]
[1680725495931,0.019,28209.0,28208.0,0.29146168]
[1680725498858,0.019,28209.0,28208.0,0.41822339]
[1680725501040,0.019,28209.0,28208.0,0.29146168]
[1680725502504,0.019,28209.0,28208.0,0.41821104]
[1680725503146,0.019,28209.0,28208.0,0.13320136]
[1680725504284,0.019,28209.0,28208.0,0.30268389]
[1680725506619,0.019,28209.0,28208.0,0.13320136]
[1680725507021,0.019,28209.0,28208.0,0.30268389]
[1680725507254,0.019,28209.0,28208.0,0.39409704]
[1680725508051,0.019,28209.0,28208.0,0.26734768]
[1680725514900,0.019,28209.0,28208.0,0.47920085]
[1680725515322,0.019,28209.0,28208.0,0.30971832]
[1680725515533,0.019,28209.0,28208.0,0.47872093]
[1680725516166,0.019,28209.0,28208.0,0.30971832]
[1680725516339,0.019,28209.0,28208.0,0.47871288]
[1680725517335,0.019,28209.0,28208.0,0.47872413]
[1680725518140,0.21840923,28212.0,28209.0,0.24329587]
[1680725518340,0.57311979,28212.0,28210.0,0.08627564]
[1680725521504,0.58411979,28212.0,28210.0,0.08627564]
[1680725522129,0.57311979,28212.0,28210.0,0.08627564]
[1680725522329,0.43724059,28211.0,28210.0,0.08650364]
[1680725522614,0.43354059,28211.0,28210.0,0.08662364]
[1680725522833,0.43354059,28211.0,28210.0,0.08840364]
[1680725523027,0.43354059,28211.0,28210.0,0.08640364]
[1680725523234,0.44454059,28211.0,28210.0,0.08840364]
[1680725524495,0.011,28211.0,28210.0,0.09017564]
[1680725525526,0.011,28211.0,28210.0,0.08840364]
[1680725527433,0.011,28211.0,28210.0,0.2151591]
[1680725529014,0.011,28211.0,28210.0,0.08840364]
[1680725529246,0.011,28211.0,28210.0,0.2151591]
[1680725529453,0.011,28211.0,28210.0,0.13242746]
[1680725529663,0.011,28211.0,28210.0,0.21696491]
[1680725529874,0.011,28211.0,28210.0,0.31435471]
[1680725530026,0.011,28211.0,28210.0,0.31453471]
[1680725530253,0.011,28211.0,28210.0,0.31276271]
[1680725530455,0.011,28211.0,28210.0,0.21537291]
[1680725530656,0.011,28211.0,28210.0,0.21519291]
[1680725531481,0.011,28211.0,28210.0,0.13065546]
[1680725532296,0.011,28211.0,28210.0,0.13242746]
[1680725533247,0.011,28211.0,28210.0,0.30143327]
[1680725533451,0.011,28211.0,28210.0,0.30161327]
[1680725533850,0.011,28211.0,28210.0,0.17485781]
[1680725534057,0.011,28211.0,28210.0,0.17467781]
[1680725534262,0.011,28211.0,28210.0,0.33019804]
[1680725534476,0.011,28211.0,28210.0,0.33037804]
[1680725536665,0.011,28211.0,28210.0,0.45722139]
[1680725537526,0.011,28211.0,28210.0,0.33037804]
[1680725538799,0.011,28211.0,28210.0,0.21752517]
[1680725539020,0.011,28211.0,28210.0,0.62310636]
[1680725539476,0.011,28211.0,28210.0,0.36990256]
[1680725539697,0.44682993,28217.0,28210.0,0.62230636]
[1680725539908,0.001,28211.0,28210.0,0.64530636]
[1680725540588,0.40411654,28220.0,28210.0,0.62224636]
[1680725540800,0.90072391,28220.0,28216.0,0.08458343]
[1680725541011,0.90072391,28220.0,28217.0,0.001771]
[1680725541012,0.7590071,28220.0,28217.0,0.001771]
[1680725543216,0.35489056,28220.0,28217.0,0.001771]
[1680725543424,0.35789056,28220.0,28217.0,0.001771]
[1680725543845,0.37305351,28219.0,28217.0,0.001771]
[1680725544057,0.37323351,28219.0,28217.0,0.002771]
[1680725544799,0.37323351,28219.0,28217.0,0.001771]
[1680725545161,0.37323351,28219.0,28217.0,0.09942797]
[1680725545302,0.38323351,28219.0,28217.0,0.10042797]
[1680725546346,0.37323351,28219.0,28217.0,0.09942797]
[1680725546779,0.00018,28219.0,28217.0,0.09942797]
[1680725546991,0.01,28219.0,28217.0,0.10042797]
[1680725547639,0.01,28219.0,28218.0,0.24616884]
[1680725547852,0.01,28219.0,28218.0,0.33624627]
[1680725548117,0.01,28219.0,28218.0,0.005494]
[1680725548518,0.01,28219.0,28218.0,0.005374]
[1680725548767,0.01,28219.0,28218.0,0.005314]
[1680725549608,0.39850843,28220.0,28218.0,0.005314]
[1680725549812,0.75321899,28220.0,28219.0,0.1]
[1680725550047,0.75321899,28220.0,28219.0,0.101771]
[1680725550888,0.75621899,28220.0,28219.0,0.101771]
[1680725553773,0.40150843,28220.0,28219.0,0.101771]
[1680725553999,0.003,28220.0,28219.0,0.101771]
[1680725556732,0.42445067,28220.0,28219.0,0.101771]
[1680725557345,0.42463067,28220.0,28219.0,0.101771]
[1680725557760,0.42445067,28220.0,28219.0,0.101771]
[1680725558398,0.77916123,28220.0,28219.0,0.1]
[1680725558608,0.41014356,28220.0,28219.0,0.1]
[1680725558820,0.79047744,28220.0,28219.0,0.1]
[1680725559678,0.78747744,28220.0,28219.0,0.1]
[1680725559881,0.79865744,28220.0,28219.0,0.102]
[1680725566114,0.74622444,28220.0,28219.0,0.102]
[1680725566737,0.01118,28220.0,28219.0,0.102]
[1680725566951,0.011,28220.0,28219.0,0.103771]
[1680725567382,0.01018,28221.0,28219.0,0.34869075]
[1680725567607,0.36489056,28221.0,28219.0,0.34869075]
[1680725567951,0.011,28220.0,28219.0,0.35069075]
[1680725568218,0.01118,28220.0,28219.0,0.35069075]
[1680725568844,0.00018,28220.0,28219.0,0.34869075]
[1680725569069,0.01018,28221.0,28219.0,0.34869075]
[1680725569695,0.01018,28221.0,28219.0,0.34891975]
[1680725569696,0.02118,28221.0,28219.0,0.34891975]
[1680725570343,0.01,28221.0,28220.0,0.12689943]
[1680725573041,0.013,28221.0,28220.0,0.12689943]
[1680725573660,0.01,28221.0,28220.0,0.12689943]
[1680725573873,0.013,28221.0,28220.0,0.12689943]
[1680725574087,0.01,28221.0,28220.0,0.12689943]
[1680725574678,0.013,28221.0,28220.0,0.12689943]
[1680725576374,0.01,28221.0,28220.0,0.12867043]
[1680725577041,0.013,28221.0,28220.0,0.12867043]
[1680725577249,0.01,28221.0,28220.0,0.13221343]
[1680725577453,0.013,28221.0,28220.0,0.13221343]
[1680725577676,0.01,28221.0,28220.0,0.13221343]
[1680725577889,0.013,28221.0,28220.0,0.13221343]
[1680725578742,0.013,28221.0,28220.0,0.005314]
[1680725578970,0.35835288,28222.0,28220.0,0.19409536]
[1680725579183,0.00018,28223.0,28220.0,0.19415536]
[1680725579393,0.02398,28224.0,28221.0,0.01235601]
[1680725579394,0.78376269,28224.0,28221.0,0.01235601]
[1680725579599,0.78394269,28224.0,28218.0,0.07208558]
[1680725579811,0.44326819,28223.0,28222.0,0.001771]
[1680725580016,0.44344819,28223.0,28222.0,0.001771]
[1680725581306,0.84342382,28223.0,28218.0,0.003543]
[1680725581551,0.84342382,28223.0,28220.0,0.001771]
[1680725581552,0.35471056,28222.0,28220.0,0.001771]
[1680725581787,0.35489056,28222.0,28220.0,0.001771]
[1680725582879,0.44584023,28221.0,28216.0,0.17111886]
[1680725583113,0.49660737,28220.0,28216.0,0.28342059]
[1680725583406,0.49660737,28220.0,28216.0,0.28360059]
[1680725583626,0.58946435,28220.0,28215.0,0.16934686]
[1680725583849,0.49678737,28220.0,28215.0,0.16916686]
[1680725584091,0.054228,28219.0,28215.0,0.16916686]
[1680725584325,0.35471056,28218.0,28214.0,0.48885859]
[1680725584566,0.35471056,28218.0,28215.0,0.16916686]
[1680725584779,0.35489056,28218.0,28215.0,0.16916686]
[1680725584995,0.32562502,28217.0,28216.0,0.01]
[1680725585210,0.68051558,28217.0,28216.0,0.01]
[1680725586569,0.68051558,28217.0,28215.0,0.16916686]
[1680725586776,0.35471056,28216.0,28215.0,0.16916686]
[1680725586983,0.42362212,28216.0,28214.0,0.16934686]
[1680725587203,0.35489056,28216.0,28213.0,0.16934686]
[1680725587411,0.35489056,28216.0,28212.0,0.17111886]
[1680725587622,0.35489056,28216.0,28212.0,0.17093886]
[1680725587623,0.35471056,28216.0,28212.0,0.17093886]
[1680725587831,0.35580662,28215.0,28212.0,0.17093886]
[1680725588055,0.35471056,28214.0,28213.0,0.001]
[1680725588701,0.35471056,28214.0,28213.0,0.12823324]
[1680725588870,0.35489056,28214.0,28213.0,0.12723324]
[1680725589494,0.35489056,28214.0,28212.0,0.2983521]
[1680725589665,0.35471056,28214.0,28213.0,0.08480412]
[1680725589862,0.35489056,28214.0,28213.0,0.12900524]
[1680725590039,0.35489056,28214.0,28213.0,0.26111726]